[Event "Titled Tuesday Blitz February 22 Late 2022"]
[White "Shirov, Alexei"]
[Black "Sevian, Samuel"]
[WhiteFideId "2209390"]
[BlackFideId "2040506"]
[WhiteElo "2645"]
[BlackElo "2698"]
[Result "0-1"]
[Round "06"]
[TimeControl "180+1"]
[Date "2022.02.22"]
[WhiteClock "0:00:17"]
[BlackClock "0:01:39"]

1. d4 {[%clk 0:03:00]}  Nf6 {[%clk 0:02:59]} 2. Nf3 {[%clk 0:03:00]}  b5 {[%clk 0:02:57]} 3. Bg5 {[%clk 0:02:53]}  Bb7 {[%clk 0:02:53]} 4. Nbd2 {[%clk 0:02:52]}  c5 {[%clk 0:02:52]} 5. dxc5 {[%clk 0:02:49]}  e6 {[%clk 0:02:51]} 6. e4 {[%clk 0:02:48]}  Bxc5 {[%clk 0:02:49]} 7. e5 {[%clk 0:02:46]}  h6 {[%clk 0:02:49]} 8. exf6 {[%clk 0:02:43]}  hxg5 {[%clk 0:02:49]} 9. fxg7 {[%clk 0:02:41]}  Rg8 {[%clk 0:02:49]} 10. Nb3 {[%clk 0:02:32]}  Bb6 {[%clk 0:02:47]} 11. Bxb5 {[%clk 0:02:30]}  Qf6 {[%clk 0:02:47]} 12. O-O {[%clk 0:02:23]}  g4 {[%clk 0:02:46]} 13. Nfd4 {[%clk 0:02:17]}  Rxg7 {[%clk 0:02:46]} 14. Qd3 {[%clk 0:01:55]}  Rg5 {[%clk 0:02:28]} 15. Rad1 {[%clk 0:01:40]}  Rh5 {[%clk 0:02:25]} 16. Qg3 {[%clk 0:01:35]}  Qh6 {[%clk 0:02:23]} 17. Rfe1 {[%clk 0:01:32]}  Kf8 {[%clk 0:02:10]} 18. Be2 {[%clk 0:01:23]}  Na6 {[%clk 0:02:01]} 19. Bxg4 {[%clk 0:01:23]}  Bc7 {[%clk 0:02:01]} 20. Bxh5 {[%clk 0:00:31]}  Bxg3 {[%clk 0:01:59]} 21. hxg3 {[%clk 0:00:31]}  Qxh5 {[%clk 0:01:59]} 22. c4 {[%clk 0:00:31]}  Kg7 {[%clk 0:01:59]} 23. f3 {[%clk 0:00:28]}  Rc8 {[%clk 0:01:58]} 24. Nb5 {[%clk 0:00:22]}  Rh8 {[%clk 0:01:49]} 25. Kf2 {[%clk 0:00:20]}  Nc5 {[%clk 0:01:47]} 26. Nd6 {[%clk 0:00:18]}  Nxb3 {[%clk 0:01:45]} 27. axb3 {[%clk 0:00:17]}  Qc5+ {[%clk 0:01:44]} 28. Re3 {[%clk 0:00:17]}  Bc6 {[%clk 0:01:39]} 0-1


[Site "https://www.chess.com"]

[Event "Titled Tuesday Blitz February 22 Late 2022"]
[White "Thomas, Anysia"]
[Black "Sailer, Mike"]
[WhiteFideId "670472"]
[BlackFideId "2012901"]
[WhiteElo "2002"]
[BlackElo "2109"]
[Result "1/2-1/2"]
[Round "06"]
[TimeControl "180+1"]
[Date "2022.02.23"]
[WhiteClock "0:00:07"]
[BlackClock "0:00:04"]

1. d4 {[%clk 0:03:00]}  d5 {[%clk 0:02:58]} 2. c4 {[%clk 0:03:00]}  Bf5 {[%clk 0:02:56]} 3. Nf3 {[%clk 0:03:00]}  e6 {[%clk 0:02:57]} 4. Nc3 {[%clk 0:02:59]}  Nc6 {[%clk 0:02:58]} 5. Bf4 {[%clk 0:02:49]}  Nf6 {[%clk 0:02:57]} 6. e3 {[%clk 0:02:49]}  Bb4 {[%clk 0:02:57]} 7. Be2 {[%clk 0:02:47]}  Ne4 {[%clk 0:02:57]} 8. Qb3 {[%clk 0:02:45]}  O-O {[%clk 0:02:32]} 9. O-O {[%clk 0:02:37]}  Bxc3 {[%clk 0:02:21]} 10. bxc3 {[%clk 0:02:37]}  Na5 {[%clk 0:02:20]} 11. Qb4 {[%clk 0:02:26]}  Nxc4 {[%clk 0:02:17]} 12. Bxc4 {[%clk 0:02:25]}  dxc4 {[%clk 0:02:17]} 13. Qxc4 {[%clk 0:02:25]}  c6 {[%clk 0:02:13]} 14. Rfd1 {[%clk 0:02:25]}  Bg4 {[%clk 0:02:12]} 15. Qb3 {[%clk 0:02:10]}  Qb6 {[%clk 0:01:44]} 16. Rab1 {[%clk 0:01:58]}  Qxb3 {[%clk 0:01:41]} 17. Rxb3 {[%clk 0:01:59]}  b6 {[%clk 0:01:36]} 18. c4 {[%clk 0:01:55]}  Rfd8 {[%clk 0:01:30]} 19. Rbd3 {[%clk 0:01:44]}  f6 {[%clk 0:01:12]} 20. h3 {[%clk 0:01:25]}  Bxf3 {[%clk 0:01:12]} 21. gxf3 {[%clk 0:01:26]}  Nd6 {[%clk 0:00:58]} 22. Bxd6 {[%clk 0:01:13]}  Rxd6 {[%clk 0:00:57]} 23. c5 {[%clk 0:01:13]}  bxc5 {[%clk 0:00:48]} 24. dxc5 {[%clk 0:01:13]}  Rd5 {[%clk 0:00:49]} 25. e4 {[%clk 0:00:52]}  Rxc5 {[%clk 0:00:45]} 26. Rd7 {[%clk 0:00:41]}  Rb8 {[%clk 0:00:28]} 27. Rc7 {[%clk 0:00:37]}  Rg5+ {[%clk 0:00:23]} 28. Kf1 {[%clk 0:00:33]}  h5 {[%clk 0:00:20]} 29. f4 {[%clk 0:00:29]}  Rg6 {[%clk 0:00:16]} 30. f5 {[%clk 0:00:18]}  exf5 {[%clk 0:00:16]} 31. exf5 {[%clk 0:00:18]}  Rg5 {[%clk 0:00:16]} 32. h4 {[%clk 0:00:17]}  Rg4 {[%clk 0:00:15]} 33. f3 {[%clk 0:00:17]}  Rg3 {[%clk 0:00:09]} 34. Kf2 {[%clk 0:00:17]}  Rh3 {[%clk 0:00:08]} 35. Rdd7 {[%clk 0:00:16]}  Rb2+ {[%clk 0:00:06]} 36. Ke3 {[%clk 0:00:16]}  Rhh2 {[%clk 0:00:02]} 37. Rxg7+ {[%clk 0:00:16]}  Kh8 {[%clk 0:00:03]} 38. Rgd7 {[%clk 0:00:15]}  Rbe2+ {[%clk 0:00:03]} 39. Kf4 {[%clk 0:00:12]}  Rhg2 {[%clk 0:00:03]} 40. Rd8+ {[%clk 0:00:11]}  Rg8 {[%clk 0:00:04]} 41. Rdd7 {[%clk 0:00:09]}  Rgg2 {[%clk 0:00:04]} 42. Rh7+ {[%clk 0:00:08]}  Kg8 {[%clk 0:00:04]} 43. Rhd7 {[%clk 0:00:07]}  Kh8 {[%clk 0:00:04]} 1/2-1/2


[Site "https://www.chess.com"]

[Event "Titled Tuesday Blitz February 22 Late 2022"]
[White "Tregubov, Pavel V."]
[Black "Mogranzini, Roberto"]
[WhiteFideId "4115341"]
[BlackFideId "810894"]
[WhiteElo "2341"]
[BlackElo "2469"]
[Result "1-0"]
[Round "06"]
[TimeControl "180+1"]
[Date "2022.02.23"]
[WhiteClock "0:00:14"]
[BlackClock "0:00:15"]

1. e4 {[%clk 0:03:00]}  d6 {[%clk 0:02:56]} 2. d4 {[%clk 0:02:59]}  Nf6 {[%clk 0:02:57]} 3. Nc3 {[%clk 0:02:59]}  e5 {[%clk 0:02:56]} 4. Nf3 {[%clk 0:02:59]}  exd4 {[%clk 0:02:56]} 5. Nxd4 {[%clk 0:02:59]}  Be7 {[%clk 0:02:57]} 6. Be2 {[%clk 0:02:53]}  O-O {[%clk 0:02:58]} 7. O-O {[%clk 0:02:54]}  Re8 {[%clk 0:02:58]} 8. Re1 {[%clk 0:02:53]}  Bf8 {[%clk 0:02:58]} 9. Bf1 {[%clk 0:02:53]}  c6 {[%clk 0:02:58]} 10. a4 {[%clk 0:02:52]}  a5 {[%clk 0:02:57]} 11. h3 {[%clk 0:02:48]}  Na6 {[%clk 0:02:56]} 12. Bf4 {[%clk 0:02:46]}  Nc5 {[%clk 0:02:55]} 13. f3 {[%clk 0:02:46]}  Qb6 {[%clk 0:02:54]} 14. Rb1 {[%clk 0:02:38]}  d5 {[%clk 0:02:15]} 15. e5 {[%clk 0:02:06]}  Nh5 {[%clk 0:02:00]} 16. Bh2 {[%clk 0:02:06]}  Ne6 {[%clk 0:01:57]} 17. Ne2 {[%clk 0:02:06]}  Nxd4 {[%clk 0:01:30]} 18. Nxd4 {[%clk 0:02:05]}  c5 {[%clk 0:01:26]} 19. Nb5 {[%clk 0:02:04]}  c4+ {[%clk 0:01:10]} 20. Kh1 {[%clk 0:02:04]}  g6 {[%clk 0:01:08]} 21. b3 {[%clk 0:01:41]}  Qf2 {[%clk 0:01:02]} 22. Qxd5 {[%clk 0:00:59]}  Be6 {[%clk 0:00:59]} 23. Qd4 {[%clk 0:00:54]}  Ng3+ {[%clk 0:00:58]} 24. Bxg3 {[%clk 0:00:54]}  Qxg3 {[%clk 0:00:59]} 25. bxc4 {[%clk 0:00:47]}  Red8 {[%clk 0:00:56]} 26. Nd6 {[%clk 0:00:47]}  Bxd6 {[%clk 0:00:55]} 27. exd6 {[%clk 0:00:47]}  Rxd6 {[%clk 0:00:56]} 28. Qe5 {[%clk 0:00:42]}  Qxe5 {[%clk 0:00:53]} 29. Rxe5 {[%clk 0:00:42]}  b6 {[%clk 0:00:53]} 30. c5 {[%clk 0:00:42]}  bxc5 {[%clk 0:00:53]} 31. Rxc5 {[%clk 0:00:42]}  Rd4 {[%clk 0:00:51]} 32. Bb5 {[%clk 0:00:30]}  Rd2 {[%clk 0:00:50]} 33. Bd3 {[%clk 0:00:29]}  Bd7 {[%clk 0:00:38]} 34. Ra1 {[%clk 0:00:22]}  Ra7 {[%clk 0:00:38]} 35. Kg1 {[%clk 0:00:20]}  Bf5 {[%clk 0:00:31]} 36. Bxf5 {[%clk 0:00:19]}  gxf5 {[%clk 0:00:32]} 37. Re1 {[%clk 0:00:19]}  Rad7 {[%clk 0:00:28]} 38. Ree5 {[%clk 0:00:18]}  f4 {[%clk 0:00:22]} 39. Re4 {[%clk 0:00:18]}  R7d4 {[%clk 0:00:20]} 40. Rxd4 {[%clk 0:00:17]}  Rxd4 {[%clk 0:00:21]} 41. Rxa5 {[%clk 0:00:18]}  Rd2 {[%clk 0:00:22]} 42. Rc5 {[%clk 0:00:17]}  Rd1+ {[%clk 0:00:21]} 43. Kf2 {[%clk 0:00:16]}  Ra1 {[%clk 0:00:22]} 44. a5 {[%clk 0:00:15]}  Kg7 {[%clk 0:00:22]} 45. g3 {[%clk 0:00:14]}  fxg3+ {[%clk 0:00:22]} 46. Kxg3 {[%clk 0:00:14]}  Ra4 {[%clk 0:00:22]} 47. c4 {[%clk 0:00:13]}  Kf6 {[%clk 0:00:21]} 48. Kf4 {[%clk 0:00:13]}  Ke6 {[%clk 0:00:22]} 49. Ke4 {[%clk 0:00:14]}  Kd6 {[%clk 0:00:21]} 50. Rd5+ {[%clk 0:00:14]}  Kc6 {[%clk 0:00:21]} 51. Kd4 {[%clk 0:00:14]}  Ra3 {[%clk 0:00:21]} 52. Rf5 {[%clk 0:00:14]}  Kd7 {[%clk 0:00:15]} 53. Rxf7+ {[%clk 0:00:14]}  Ke6 {[%clk 0:00:16]} 54. Rxh7 {[%clk 0:00:14]}  Rxf3 {[%clk 0:00:16]} 55. Rh6+ {[%clk 0:00:14]}  Kd7 {[%clk 0:00:16]} 56. a6 {[%clk 0:00:14]}  Ra3 {[%clk 0:00:16]} 57. Kc5 {[%clk 0:00:14]}  Ra5+ {[%clk 0:00:15]} 58. Kb6 {[%clk 0:00:14]} 1-0


[Site "https://www.chess.com"]

[Event "Titled Tuesday Blitz February 22 Late 2022"]
[White "Vargas Pereda, Jesus Manue"]
[Black "Nikologorsky, Matfei"]
[WhiteFideId "5115710"]
[BlackFideId "24102474"]
[WhiteElo "1747"]
[BlackElo "2231"]
[Result "0-1"]
[Round "06"]
[TimeControl "180+1"]
[Date "2022.02.23"]
[WhiteClock "0:00:07"]
[BlackClock "0:00:39"]

1. d4 {[%clk 0:02:19]}  Nf6 {[%clk 0:02:59]} 2. Bf4 {[%clk 0:02:17]}  g6 {[%clk 0:02:56]} 3. Nc3 {[%clk 0:02:17]}  d5 {[%clk 0:02:55]} 4. f3 {[%clk 0:02:16]}  c5 {[%clk 0:02:42]} 5. Nb5 {[%clk 0:02:05]}  Na6 {[%clk 0:02:39]} 6. e3 {[%clk 0:01:57]}  Bg7 {[%clk 0:02:36]} 7. Bd3 {[%clk 0:01:52]}  O-O {[%clk 0:02:32]} 8. Qd2 {[%clk 0:01:51]}  Nh5 {[%clk 0:02:25]} 9. Bg5 {[%clk 0:01:48]}  cxd4 {[%clk 0:02:22]} 10. Nxd4 {[%clk 0:01:47]}  Nc5 {[%clk 0:02:20]} 11. O-O-O {[%clk 0:01:46]}  Nxd3+ {[%clk 0:02:15]} 12. Qxd3 {[%clk 0:01:43]}  Nf6 {[%clk 0:01:57]} 13. h4 {[%clk 0:01:42]}  Qa5 {[%clk 0:01:54]} 14. Kb1 {[%clk 0:01:40]}  e5 {[%clk 0:01:42]} 15. Nb3 {[%clk 0:01:39]}  Qb6 {[%clk 0:01:42]} 16. h5 {[%clk 0:01:25]}  e4 {[%clk 0:01:37]} 17. Qd2 {[%clk 0:01:16]}  a5 {[%clk 0:01:27]} 18. hxg6 {[%clk 0:01:15]}  hxg6 {[%clk 0:01:23]} 19. g4 {[%clk 0:01:12]}  a4 {[%clk 0:01:22]} 20. Nd4 {[%clk 0:01:12]}  Re8 {[%clk 0:01:09]} 21. Qh2 {[%clk 0:01:11]}  exf3 {[%clk 0:01:02]} 22. Bxf6 {[%clk 0:01:11]}  Qxf6 {[%clk 0:00:57]} 23. Ngxf3 {[%clk 0:01:06]}  Bxg4 {[%clk 0:00:56]} 24. Rdf1 {[%clk 0:00:53]}  Rxe3 {[%clk 0:00:51]} 25. Qh7+ {[%clk 0:00:37]}  Kf8 {[%clk 0:00:51]} 26. c3 {[%clk 0:00:18]}  Bxf3 {[%clk 0:00:48]} 27. Rxf3 {[%clk 0:00:13]}  Rxf3 {[%clk 0:00:47]} 28. Nxf3 {[%clk 0:00:13]}  Qxf3 {[%clk 0:00:46]} 29. Qh2 {[%clk 0:00:10]}  Re8 {[%clk 0:00:42]} 30. Qd6+ {[%clk 0:00:09]}  Kg8 {[%clk 0:00:42]} 31. Qh2 {[%clk 0:00:08]}  a3 {[%clk 0:00:42]} 32. Qh7+ {[%clk 0:00:06]}  Kf8 {[%clk 0:00:41]} 33. Qh2 {[%clk 0:00:07]}  axb2 {[%clk 0:00:40]} 34. Qxb2 {[%clk 0:00:07]}  Qxh1+ {[%clk 0:00:39]} 0-1


[Site "https://www.chess.com"]

[Event "Titled Tuesday Blitz February 22 Late 2022"]
[White "Vidit, Santosh Gujrathi"]
[Black "Cardoso Cardoso, Jose Gabriel"]
[WhiteFideId "5029465"]
[BlackFideId "4430492"]
[WhiteElo "2654"]
[BlackElo "2451"]
[Result "1-0"]
[Round "06"]
[TimeControl "180+1"]
[Date "2022.02.22"]
[WhiteClock "0:00:03"]
[BlackClock "0:00:02"]

1. e4 {[%clk 0:03:00]}  g6 {[%clk 0:01:35]} 2. d4 {[%clk 0:03:00]}  Bg7 {[%clk 0:01:34]} 3. Nc3 {[%clk 0:03:00]}  d6 {[%clk 0:01:34]} 4. Be3 {[%clk 0:03:00]}  a6 {[%clk 0:01:34]} 5. Qd2 {[%clk 0:02:58]}  b5 {[%clk 0:01:34]} 6. Bd3 {[%clk 0:02:57]}  Nd7 {[%clk 0:01:33]} 7. h4 {[%clk 0:02:46]}  Ngf6 {[%clk 0:01:32]} 8. f3 {[%clk 0:02:45]}  c5 {[%clk 0:01:30]} 9. dxc5 {[%clk 0:02:34]}  dxc5 {[%clk 0:01:29]} 10. a4 {[%clk 0:02:31]}  c4 {[%clk 0:01:17]} 11. Be2 {[%clk 0:02:31]}  Rb8 {[%clk 0:01:18]} 12. axb5 {[%clk 0:02:29]}  axb5 {[%clk 0:01:19]} 13. Nh3 {[%clk 0:02:13]}  O-O {[%clk 0:01:17]} 14. O-O {[%clk 0:02:11]}  b4 {[%clk 0:01:13]} 15. Nd1 {[%clk 0:02:11]}  Ne5 {[%clk 0:01:09]} 16. Qxd8 {[%clk 0:02:06]}  Rxd8 {[%clk 0:01:10]} 17. Nhf2 {[%clk 0:01:57]}  Be6 {[%clk 0:01:02]} 18. Bf4 {[%clk 0:01:53]}  Nfd7 {[%clk 0:01:01]} 19. Ne3 {[%clk 0:01:51]}  Ra8 {[%clk 0:00:57]} 20. Rfd1 {[%clk 0:01:45]}  Kf8 {[%clk 0:00:48]} 21. Rxa8 {[%clk 0:01:06]}  Rxa8 {[%clk 0:00:47]} 22. Bxe5 {[%clk 0:01:06]}  Nxe5 {[%clk 0:00:46]} 23. f4 {[%clk 0:01:07]}  Nc6 {[%clk 0:00:39]} 24. e5 {[%clk 0:01:07]}  Bh6 {[%clk 0:00:35]} 25. Bf3 {[%clk 0:00:47]}  Rc8 {[%clk 0:00:33]} 26. Bxc6 {[%clk 0:00:45]}  Rxc6 {[%clk 0:00:32]} 27. Rd8+ {[%clk 0:00:43]}  Kg7 {[%clk 0:00:32]} 28. g3 {[%clk 0:00:43]}  f6 {[%clk 0:00:32]} 29. exf6+ {[%clk 0:00:40]}  exf6 {[%clk 0:00:33]} 30. Ne4 {[%clk 0:00:37]}  c3 {[%clk 0:00:32]} 31. bxc3 {[%clk 0:00:29]}  bxc3 {[%clk 0:00:33]} 32. Rd3 {[%clk 0:00:25]}  Kf7 {[%clk 0:00:27]} 33. Nxc3 {[%clk 0:00:20]}  g5 {[%clk 0:00:25]} 34. hxg5 {[%clk 0:00:16]}  fxg5 {[%clk 0:00:26]} 35. f5 {[%clk 0:00:16]}  Bc8 {[%clk 0:00:26]} 36. Ne4 {[%clk 0:00:15]}  Ba6 {[%clk 0:00:17]} 37. Rd7+ {[%clk 0:00:11]}  Kg8 {[%clk 0:00:17]} 38. Ng4 {[%clk 0:00:09]}  Bg7 {[%clk 0:00:08]} 39. f6 {[%clk 0:00:09]}  Bf8 {[%clk 0:00:04]} 40. Nxg5 {[%clk 0:00:08]}  Rxc2 {[%clk 0:00:03]} 41. Ne6 {[%clk 0:00:03]}  Rc1+ {[%clk 0:00:03]} 42. Kh2 {[%clk 0:00:02]}  Rc2+ {[%clk 0:00:04]} 43. Kh3 {[%clk 0:00:01]}  Rc6 {[%clk 0:00:04]} 44. f7+ {[%clk 0:00:01]}  Kh8 {[%clk 0:00:05]} 45. Nxf8 {[%clk 0:00:02]}  h5 {[%clk 0:00:05]} 46. Ne5 {[%clk 0:00:02]}  Bf1+ {[%clk 0:00:01]} 47. Kh2 {[%clk 0:00:02]}  Rc4 {[%clk 0:00:02]} 48. Nfg6+ {[%clk 0:00:02]}  Kg7 {[%clk 0:00:02]} 49. f8=Q# {[%clk 0:00:03]} 1-0


[Site "https://www.chess.com"]

[Event "Titled Tuesday Blitz February 22 Late 2022"]
[White "Villegas, Pierre"]
[Black "Chabris, Christopher"]
[WhiteFideId "654183"]
[BlackFideId "2005263"]
[WhiteElo "2410"]
[BlackElo "2311"]
[Result "1-0"]
[Round "06"]
[TimeControl "180+1"]
[Date "2022.02.23"]
[WhiteClock "0:00:09"]
[BlackClock "0:00:04"]

1. d4 {[%clk 0:03:00]}  d5 {[%clk 0:02:59]} 2. c4 {[%clk 0:03:01]}  c6 {[%clk 0:02:59]} 3. Nf3 {[%clk 0:03:00]}  Nf6 {[%clk 0:02:59]} 4. e3 {[%clk 0:02:56]}  e6 {[%clk 0:02:59]} 5. b3 {[%clk 0:02:55]}  Ne4 {[%clk 0:02:56]} 6. Nbd2 {[%clk 0:02:49]}  Bb4 {[%clk 0:02:55]} 7. a3 {[%clk 0:02:43]}  Bc3 {[%clk 0:02:44]} 8. Rb1 {[%clk 0:02:42]}  c5 {[%clk 0:02:44]} 9. Bd3 {[%clk 0:02:26]}  cxd4 {[%clk 0:02:38]} 10. exd4 {[%clk 0:02:27]}  Nc6 {[%clk 0:02:28]} 11. O-O {[%clk 0:01:22]}  Nxd2 {[%clk 0:02:05]} 12. Bxd2 {[%clk 0:01:21]}  Bxd4 {[%clk 0:01:51]} 13. Nxd4 {[%clk 0:01:13]}  Nxd4 {[%clk 0:01:50]} 14. Qg4 {[%clk 0:01:13]}  Qf6 {[%clk 0:01:34]} 15. cxd5 {[%clk 0:01:05]}  e5 {[%clk 0:01:28]} 16. Qh5 {[%clk 0:01:00]}  g6 {[%clk 0:01:15]} 17. Qh6 {[%clk 0:01:00]}  Nf5 {[%clk 0:01:00]} 18. Bxf5 {[%clk 0:01:00]}  Bxf5 {[%clk 0:00:58]} 19. Bg5 {[%clk 0:00:59]}  Qd6 {[%clk 0:00:54]} 20. Qg7 {[%clk 0:00:57]}  Rf8 {[%clk 0:00:34]} 21. Rbe1 {[%clk 0:00:13]}  f6 {[%clk 0:00:18]} 22. Bh6 {[%clk 0:00:13]}  O-O-O {[%clk 0:00:10]} 23. Rc1+ {[%clk 0:00:10]}  Kb8 {[%clk 0:00:10]} 24. Be3 {[%clk 0:00:10]}  Rd7 {[%clk 0:00:04]} 25. Qh6 {[%clk 0:00:09]} 1-0


[Site "https://www.chess.com"]

[Event "Titled Tuesday Blitz February 22 Late 2022"]
[White "Vlassov, Nikolai"]
[Black "Van den Dikkenberg, Erik"]
[WhiteFideId "4103360"]
[BlackFideId "1005880"]
[WhiteElo "2407"]
[BlackElo "2118"]
[Result "1-0"]
[Round "06"]
[TimeControl "180+1"]
[Date "2022.02.23"]
[WhiteClock "0:00:26"]
[BlackClock "0:00:30"]

1. e4 {[%clk 0:03:00]}  c5 {[%clk 0:02:59]} 2. c3 {[%clk 0:03:00]}  g6 {[%clk 0:02:58]} 3. d4 {[%clk 0:03:00]}  cxd4 {[%clk 0:02:58]} 4. cxd4 {[%clk 0:03:01]}  Bg7 {[%clk 0:02:58]} 5. Nc3 {[%clk 0:03:01]}  d6 {[%clk 0:02:54]} 6. Be3 {[%clk 0:02:58]}  Nf6 {[%clk 0:02:51]} 7. f3 {[%clk 0:02:54]}  O-O {[%clk 0:02:51]} 8. h4 {[%clk 0:02:53]}  h5 {[%clk 0:02:50]} 9. Nh3 {[%clk 0:02:50]}  Bxh3 {[%clk 0:02:47]} 10. Rxh3 {[%clk 0:02:50]}  Nbd7 {[%clk 0:02:46]} 11. g4 {[%clk 0:02:44]}  hxg4 {[%clk 0:02:41]} 12. fxg4 {[%clk 0:02:44]}  e5 {[%clk 0:02:36]} 13. d5 {[%clk 0:02:41]}  Nc5 {[%clk 0:02:26]} 14. Qf3 {[%clk 0:02:32]}  Qb6 {[%clk 0:02:12]} 15. Rb1 {[%clk 0:02:28]}  Qb4 {[%clk 0:02:01]} 16. a3 {[%clk 0:02:19]}  Qb3 {[%clk 0:01:52]} 17. h5 {[%clk 0:02:13]}  Nfd7 {[%clk 0:01:18]} 18. h6 {[%clk 0:02:04]}  Bf6 {[%clk 0:01:16]} 19. Bxc5 {[%clk 0:02:03]}  dxc5 {[%clk 0:01:15]} 20. Bb5 {[%clk 0:02:03]}  Bg5 {[%clk 0:00:51]} 21. Bxd7 {[%clk 0:02:00]}  Qc2 {[%clk 0:00:48]} 22. Qe2 {[%clk 0:01:56]}  Qb3 {[%clk 0:00:45]} 23. Bb5 {[%clk 0:01:28]}  a6 {[%clk 0:00:44]} 24. Bc4 {[%clk 0:01:26]}  Qb6 {[%clk 0:00:42]} 25. h7+ {[%clk 0:01:22]}  Kg7 {[%clk 0:00:40]} 26. Rd1 {[%clk 0:01:18]}  Rh8 {[%clk 0:00:39]} 27. d6 {[%clk 0:01:15]}  Rxh7 {[%clk 0:00:39]} 28. Rxh7+ {[%clk 0:01:14]}  Kxh7 {[%clk 0:00:40]} 29. Bxf7 {[%clk 0:01:07]}  Rf8 {[%clk 0:00:36]} 30. Qh2+ {[%clk 0:00:27]}  Kg7 {[%clk 0:00:36]} 31. Qxe5+ {[%clk 0:00:27]}  Bf6 {[%clk 0:00:32]} 32. Qxf6+ {[%clk 0:00:27]}  Kxf6 {[%clk 0:00:32]} 33. Nd5+ {[%clk 0:00:28]}  Kxf7 {[%clk 0:00:31]} 34. Nxb6 {[%clk 0:00:28]}  Ke6 {[%clk 0:00:31]} 35. d7 {[%clk 0:00:28]}  Rd8 {[%clk 0:00:31]} 36. Ke2 {[%clk 0:00:27]}  g5 {[%clk 0:00:30]} 37. Ke3 {[%clk 0:00:27]}  Ke5 {[%clk 0:00:30]} 38. Rd5+ {[%clk 0:00:26]} 1-0


[Site "https://www.chess.com"]

[Event "Titled Tuesday Blitz February 22 Late 2022"]
[White "Vovk, Orest"]
[Black "Batsiashvili, Nino"]
[WhiteFideId "14113490"]
[BlackFideId "13602993"]
[WhiteElo "2203"]
[BlackElo "2230"]
[Result "1-0"]
[Round "06"]
[TimeControl "180+1"]
[Date "2022.02.23"]
[WhiteClock "0:00:22"]
[BlackClock "0:00:03"]

1. h4 {[%clk 0:02:54]}  e5 {[%clk 0:02:59]} 2. h5 {[%clk 0:02:54]}  h6 {[%clk 0:02:59]} 3. d4 {[%clk 0:02:52]}  exd4 {[%clk 0:02:55]} 4. Qxd4 {[%clk 0:02:53]}  Qf6 {[%clk 0:02:55]} 5. Qxf6 {[%clk 0:02:49]}  Nxf6 {[%clk 0:02:56]} 6. Nc3 {[%clk 0:02:47]}  d5 {[%clk 0:02:56]} 7. e3 {[%clk 0:02:47]}  a6 {[%clk 0:02:55]} 8. Bd2 {[%clk 0:02:47]}  c5 {[%clk 0:02:55]} 9. O-O-O {[%clk 0:02:47]}  Nc6 {[%clk 0:02:55]} 10. f3 {[%clk 0:02:46]}  Be6 {[%clk 0:02:54]} 11. e4 {[%clk 0:02:46]}  d4 {[%clk 0:02:50]} 12. Nce2 {[%clk 0:02:43]}  O-O-O {[%clk 0:02:36]} 13. Nf4 {[%clk 0:02:42]}  b5 {[%clk 0:02:26]} 14. Nxe6 {[%clk 0:02:41]}  fxe6 {[%clk 0:02:27]} 15. g3 {[%clk 0:02:41]}  Kb7 {[%clk 0:02:25]} 16. Bh3 {[%clk 0:02:41]}  e5 {[%clk 0:02:24]} 17. Bf5 {[%clk 0:02:38]}  c4 {[%clk 0:02:23]} 18. f4 {[%clk 0:02:34]}  Bd6 {[%clk 0:02:16]} 19. Nf3 {[%clk 0:02:33]}  Rhe8 {[%clk 0:02:11]} 20. Rde1 {[%clk 0:02:27]}  b4 {[%clk 0:02:05]} 21. Kb1 {[%clk 0:02:13]}  c3 {[%clk 0:02:00]} 22. Bc1 {[%clk 0:02:12]}  Bc7 {[%clk 0:01:49]} 23. fxe5 {[%clk 0:02:10]}  Bxe5 {[%clk 0:01:48]} 24. Nxe5 {[%clk 0:02:09]}  Nxe5 {[%clk 0:01:48]} 25. Bf4 {[%clk 0:02:03]}  d3 {[%clk 0:01:47]} 26. Bxe5 {[%clk 0:01:57]}  dxc2+ {[%clk 0:01:42]} 27. Kc1 {[%clk 0:01:50]}  Rxe5 {[%clk 0:01:40]} 28. bxc3 {[%clk 0:01:49]}  Ra5 {[%clk 0:01:32]} 29. Kxc2 {[%clk 0:01:45]}  Rxa2+ {[%clk 0:01:31]} 30. Kb3 {[%clk 0:01:46]}  Rdd2 {[%clk 0:01:31]} 31. Kxb4 {[%clk 0:01:42]}  Kc6 {[%clk 0:01:20]} 32. Ra1 {[%clk 0:01:38]}  a5+ {[%clk 0:01:14]} 33. Kc4 {[%clk 0:01:36]}  Ne8 {[%clk 0:01:00]} 34. Rxa2 {[%clk 0:01:33]}  Rxa2 {[%clk 0:01:01]} 35. e5 {[%clk 0:01:22]}  Re2 {[%clk 0:01:00]} 36. Kd4 {[%clk 0:01:22]}  Nc7 {[%clk 0:00:56]} 37. Be4+ {[%clk 0:01:16]}  Kd7 {[%clk 0:00:53]} 38. Bf5+ {[%clk 0:01:09]}  Kc6 {[%clk 0:00:53]} 39. c4 {[%clk 0:01:08]}  Rd2+ {[%clk 0:00:50]} 40. Ke3 {[%clk 0:01:06]}  Rb2 {[%clk 0:00:49]} 41. Rd1 {[%clk 0:00:58]}  a4 {[%clk 0:00:42]} 42. Rd6+ {[%clk 0:00:52]}  Kc5 {[%clk 0:00:41]} 43. Be4 {[%clk 0:00:52]}  Rb6 {[%clk 0:00:27]} 44. Rd7 {[%clk 0:00:52]}  Ne6 {[%clk 0:00:23]} 45. Bd5 {[%clk 0:00:52]}  a3 {[%clk 0:00:23]} 46. Ra7 {[%clk 0:00:50]}  Kb4 {[%clk 0:00:16]} 47. Bxe6 {[%clk 0:00:46]}  Rxe6 {[%clk 0:00:17]} 48. Kd4 {[%clk 0:00:46]}  Re8 {[%clk 0:00:16]} 49. Rb7+ {[%clk 0:00:43]}  Ka4 {[%clk 0:00:15]} 50. Ra7+ {[%clk 0:00:27]}  Kb3 {[%clk 0:00:15]} 51. c5 {[%clk 0:00:24]}  a2 {[%clk 0:00:05]} 52. c6 {[%clk 0:00:24]}  Rc8 {[%clk 0:00:03]} 53. Kd5 {[%clk 0:00:22]} 1-0


[Site "https://www.chess.com"]

[Event "Titled Tuesday Blitz February 22 Late 2022"]
[White "Yang, Kaiqi"]
[Black "Samarth, J Rao"]
[WhiteFideId "8604398"]
[BlackFideId "46652370"]
[WhiteElo "2373"]
[BlackElo "1514"]
[Result "1-0"]
[Round "06"]
[TimeControl "180+1"]
[Date "2022.02.23"]
[WhiteClock "0:00:34"]
[BlackClock "0:00:14"]

1. d4 {[%clk 0:03:00]}  d5 {[%clk 0:02:55]} 2. c4 {[%clk 0:03:00]}  e6 {[%clk 0:02:55]} 3. Nc3 {[%clk 0:03:00]}  c6 {[%clk 0:02:55]} 4. Nf3 {[%clk 0:02:56]}  Nf6 {[%clk 0:02:53]} 5. e3 {[%clk 0:02:55]}  Bd6 {[%clk 0:02:52]} 6. Qc2 {[%clk 0:02:54]}  Nbd7 {[%clk 0:02:47]} 7. g4 {[%clk 0:02:52]}  Nxg4 {[%clk 0:02:45]} 8. Rg1 {[%clk 0:02:52]}  Nxh2 {[%clk 0:02:38]} 9. Nxh2 {[%clk 0:02:51]}  Bxh2 {[%clk 0:02:39]} 10. Rxg7 {[%clk 0:02:51]}  Qf6 {[%clk 0:02:37]} 11. Rg2 {[%clk 0:02:50]}  Bd6 {[%clk 0:02:35]} 12. e4 {[%clk 0:02:36]}  Qxd4 {[%clk 0:02:02]} 13. Be3 {[%clk 0:02:35]}  Qf6 {[%clk 0:01:50]} 14. exd5 {[%clk 0:02:31]}  Ne5 {[%clk 0:01:50]} 15. O-O-O {[%clk 0:02:30]}  exd5 {[%clk 0:01:48]} 16. cxd5 {[%clk 0:02:29]}  Bf5 {[%clk 0:01:44]} 17. Qb3 {[%clk 0:02:24]}  Qe7 {[%clk 0:01:32]} 18. dxc6 {[%clk 0:02:05]}  bxc6 {[%clk 0:01:31]} 19. Qa4 {[%clk 0:02:02]}  Bg6 {[%clk 0:01:22]} 20. Nd5 {[%clk 0:01:29]}  Qb7 {[%clk 0:01:02]} 21. Nf6+ {[%clk 0:01:18]}  Ke7 {[%clk 0:01:02]} 22. Bg5 {[%clk 0:01:18]}  h6 {[%clk 0:00:50]} 23. Bh4 {[%clk 0:01:07]}  Rhd8 {[%clk 0:00:32]} 24. Ne4+ {[%clk 0:00:47]}  Ke6 {[%clk 0:00:19]} 25. Rxd6+ {[%clk 0:00:36]}  Rxd6 {[%clk 0:00:16]} 26. Nc5+ {[%clk 0:00:36]}  Kf5 {[%clk 0:00:14]} 27. Qe4# {[%clk 0:00:34]} 1-0


[Site "https://www.chess.com"]